bitfinex/quotes_ETHUSD_20240618
["timestamp","ask_amount","ask_price","bid_price","bid_amount"]
[1718703371513,2.5933,3445.4,3444.6,2.90309]
[1718703371718,2.5933,3445.4,3444.7,0.55]
[1718703371913,1.39099388,3445.6,3444.7,0.55]
[1718703372236,1.39099388,3445.7,3444.7,0.55]
[1718703372443,1.39099388,3445.6,3444.5,3.45317]
[1718703372746,4.39099388,3445.7,3444.5,3.45317]
[1718703372942,1.39099388,3445.6,3444.5,3.45317]
[1718703373129,4.39099388,3445.7,3444.5,3.45317]
[1718703373312,1.39099388,3445.6,3444.5,3.45317]
[1718703373714,4.39099388,3445.7,3444.5,3.45317]
[1718703374013,1.39099388,3445.3,3443.8,10.33375]
[1718703374335,1.39099388,3445.1,3443.9,0.55]
[1718703374537,1.39099388,3445.1,3443.9,3.45367]
[1718703374733,1.39099388,3445.1,3444.2,2.90335]
[1718703375042,3.0,3445.4,3444.3,0.55]
[1718703375043,1.39099388,3445.3,3444.3,0.55]
[1718703375663,1.39099388,3445.3,3444.2,0.55]
[1718703375816,1.39138607,3445.3,3444.2,0.55]
[1718703376515,1.39138607,3445.2,3444.2,0.55]
[1718703377562,1.39138607,3445.3,3444.2,0.55]
[1718703377755,3.0,3445.4,3444.2,0.55]
[1718703377756,1.39138607,3445.2,3444.2,0.55]
[1718703379454,1.39138607,3445.1,3444.2,0.55]
[1718703379645,1.39138607,3445.2,3444.2,0.55]
[1718703380177,1.39138607,3445.1,3444.2,0.55]
[1718703380505,1.39138607,3445.0,3444.2,0.55]
[1718703380656,1.39138607,3445.0,3444.1,0.55]
[1718703381048,1.39138607,3445.2,3444.2,2.62326536]
[1718703381279,1.39138607,3445.2,3444.4,2.90318]
[1718703381453,1.39138607,3445.2,3444.5,0.55]
[1718703381851,1.39138607,3445.2,3444.2,2.5652]
[1718703382155,3.0,3445.6,3444.2,2.5652]
[1718703382156,1.39138607,3445.0,3444.2,2.5652]
[1718703382479,1.39138607,3444.9,3444.2,2.5652]
[1718703383076,1.39138607,3444.9,3443.8,2.9037]
[1718703383077,3.97918607,3444.9,3443.8,2.5649]
[1718703383266,1.39138607,3444.7,3443.8,2.5649]
[1718703383468,1.39138607,3444.6,3443.5,2.5649]
[1718703383655,1.39138607,3444.5,3443.5,2.5649]
[1718703383848,1.39138607,3444.5,3443.5,5.46889]
[1718703384172,1.39138607,3444.4,3443.5,2.5649]
[1718703384367,1.39138607,3444.3,3443.5,2.5649]
[1718703384568,1.39138607,3444.3,3443.6,0.55]
[1718703384773,1.39138607,3444.3,3443.5,5.46889]
[1718703385074,1.39138607,3444.4,3443.5,5.46889]
[1718703385252,1.39138607,3444.2,3443.5,5.46889]
[1718703386068,1.39138607,3444.2,3443.6,0.55]
[1718703386271,1.39138607,3444.1,3443.6,0.55]
[1718703387297,1.39138607,3444.0,3443.6,0.55]
[1718703388193,1.39138607,3443.9,3443.6,0.55]
[1718703390596,1.3918479,3443.9,3443.6,0.55]
[1718703391199,3.0,3444.8,3443.2,2.90419]
[1718703391200,2.4777,3444.3,3443.2,2.4935]
[1718703391404,1.39171939,3443.5,3443.2,2.4935]
[1718703391575,1.39171939,3443.4,3443.2,2.4935]
[1718703393088,1.39171939,3443.4,3443.3,0.55]
[1718703393414,1.39162681,3443.4,3443.3,0.55]
[1718703393600,1.39162825,3443.4,3443.2,0.55]
[1718703396227,1.39162825,3443.3,3443.2,0.55]
[1718703396434,1.39162825,3443.4,3443.2,0.55]
[1718703398118,1.39162825,3443.4,3443.2,1.630534]
[1718703399418,0.60561438,3444.0,3443.2,1.630534]
[1718703399592,1.3910797,3443.5,3443.4,2.9041]
[1718703399796,1.3910797,3443.7,3443.5,3.45402]
[1718703400825,1.3910797,3443.7,3443.6,0.861]
[1718703400993,1.3910797,3443.7,3443.6,7.21886]
[1718703401199,1.3910797,3444.0,3443.7,2.4973]
[1718703401521,1.3910797,3444.1,3443.8,1.231223]
[1718703401684,1.3910797,3444.1,3443.8,0.55]
[1718703401902,1.3910797,3444.1,3443.8,2.616]
[1718703402628,1.3910797,3444.2,3443.8,2.616]
[1718703402826,1.3910797,3444.1,3443.8,2.616]
[1718703403210,3.50103291,3444.0,3443.8,0.55]
[1718703403400,1.99669408,3444.0,3443.8,0.55]
[1718703403744,2.10998585,3443.9,3443.8,0.55]
[1718703404221,1.99669408,3444.0,3443.8,0.55]
[1718703404416,2.71560273,3443.9,3443.8,0.55]
[1718703404624,3.50106805,3443.9,3443.5,0.55]
[1718703404804,2.7158369,3443.8,3443.5,0.55]
[1718703404995,0.60579444,3443.8,3443.5,0.55]
[1718703405998,0.60579444,3443.8,3443.7,5.8077]
[1718703406242,1.99687414,3444.3,3444.0,5.3045]
[1718703406410,0.60579444,3444.3,3444.2,2.066]
[1718703406831,0.60579444,3444.4,3444.2,2.616]
[1718703407033,0.60579444,3444.4,3444.3,0.55]
[1718703408270,2.29675201,3444.6,3444.4,2.90323]
[1718703408271,0.60579444,3444.6,3444.4,2.90323]
[1718703408441,0.60579444,3444.6,3444.5,0.55]
[1718703408629,0.60579444,3444.7,3444.5,0.55]
[1718703409261,0.60579444,3444.6,3444.5,0.55]
[1718703409854,0.90567231,3444.7,3444.5,0.55]
[1718703410187,3.01522487,3444.6,3444.4,0.55]
[1718703410478,2.10958385,3444.5,3444.3,0.55]
[1718703410628,0.909297,3444.4,3444.1,0.55]
[1718703410831,0.909297,3444.4,3444.1,3.4535]
[1718703411032,0.60620169,3444.3,3444.1,4.826284]
[1718703411340,0.60620169,3444.2,3444.1,4.826284]
[1718703411927,0.60620169,3444.3,3444.1,4.826284]
[1718703412637,0.60620169,3444.3,3444.2,2.90343]
[1718703412849,0.60620169,3444.3,3444.2,4.4664924]
[1718703413263,0.909297,3444.4,3444.2,4.4664924]
[1718703413562,0.509297,3444.4,3444.3,0.55]
[1718703413761,0.60657987,3444.4,3444.3,3.45334]
[1718703414265,2.90770076,3444.9,3444.3,3.45334]
[1718703414266,0.60657987,3444.5,3444.4,2.90326]
[1718703414472,0.60657987,3444.5,3444.4,4.53410464]
[1718703415070,0.60660129,3444.5,3444.4,4.53410464]
[1718703416047,1.20984115,3444.8,3444.4,4.53410464]
[1718703416247,1.20984115,3444.8,3444.5,0.55]
[1718703422352,0.90980448,3444.7,3444.5,0.55]
[1718703422985,0.90980448,3444.6,3444.4,0.55]
[1718703423177,0.60653315,3444.5,3444.0,2.4009]
[1718703423353,0.60653315,3444.4,3444.0,2.64099]
[1718703424271,0.60653315,3444.3,3444.1,0.05806477]
[1718703424685,0.60653315,3444.4,3444.3,2.90334]
[1718703424976,0.60653315,3444.4,3444.3,3.45334]
[1718703427285,0.60653315,3444.4,3444.3,0.55]
[1718703427591,0.90980448,3444.5,3444.1,3.45347]
[1718703427775,0.60647635,3444.3,3444.1,3.45347]
[1718703427974,0.60647635,3444.4,3444.3,2.90334]
[1718703428193,0.60647635,3444.4,3444.3,3.45334]
[1718703428419,0.60647635,3444.4,3444.3,0.55]
[1718703428553,0.60647635,3444.4,3443.4,2.90408]
[1718703428554,0.90980448,3444.4,3443.7,5.3354]
[1718703428752,0.60643094,3444.1,3443.8,2.90376]
[1718703428965,0.60643094,3444.0,3443.8,2.90376]
[1718703430108,0.60643094,3444.0,3443.7,2.90385]
[1718703430109,0.60643094,3444.0,3443.9,2.90368]
[1718703430314,0.60643094,3444.1,3443.9,3.75837884]
[1718703430457,0.60643094,3444.1,3444.0,0.55]
[1718703431362,0.60643094,3444.1,3444.0,3.4536]
[1718703432503,0.60643094,3444.1,3444.0,0.55]
[1718703433770,0.60643094,3444.1,3444.0,3.4536]
[1718703433987,0.60643094,3444.2,3444.0,6.686136]
[1718703434388,0.60643094,3444.2,3444.1,5.80702]
[1718703434588,0.60643094,3444.3,3444.2,2.90343]
[1718703434965,0.60643094,3444.3,3444.2,3.45343]
[1718703435791,2.30168364,3444.4,3444.3,2.90334]
[1718703435988,2.30168364,3444.4,3444.3,3.45334]
[1718703437915,1.39187916,3444.4,3444.3,3.45334]
[1718703438208,3.50157201,3444.4,3444.3,3.45334]
[1718703440288,4.71141316,3444.4,3444.3,3.45334]
[1718703440489,4.71141316,3444.4,3444.0,2.90358]
[1718703440711,0.91021163,3444.2,3444.1,0.55]
[1718703441596,0.91021163,3444.2,3444.1,1.411]
[1718703442285,0.91021163,3444.2,3444.1,4.31451]
[1718703444085,1.20984115,3444.3,3444.1,4.31451]
[1718703444293,3.31950101,3444.2,3444.1,4.31451]
[1718703445007,4.72179973,3444.2,3443.6,7.43]
[1718703445188,2.91065028,3443.7,3443.6,7.43]
[1718703445389,2.10965986,3443.7,3443.5,0.861]
[1718703445630,3.32469243,3443.6,3443.5,0.861]
[1718703446007,2.10965986,3443.6,3443.5,0.861]
[1718703446923,3.62838987,3443.6,3443.5,0.861]
[1718703447324,2.10965986,3443.6,3443.5,0.861]
[1718703447650,2.10965986,3443.6,3443.4,2.90408]
[1718703447852,1.21495809,3443.5,3443.4,2.90408]
[1718703448053,3.32461795,3443.5,3443.4,0.55]
[1718703448851,2.10965986,3443.5,3443.4,0.55]
[1718703449409,1.21495809,3443.6,3443.4,0.55]
[1718703449814,2.1101155,3443.5,3443.4,0.55]
[1718703450253,1.21495809,3443.6,3443.4,0.55]
[1718703450415,3.32509232,3443.5,3443.4,0.55]
[1718703451071,2.11013423,3443.5,3443.4,0.55]
[1718703452141,1.21495809,3443.6,3443.4,0.55]
[1718703452473,1.21495809,3443.6,3443.3,5.33777]
[1718703452474,1.21495809,3443.6,3443.5,3.45402]
[1718703452754,2.11012193,3443.6,3443.5,3.45402]
[1718703453159,3.02111176,3443.6,3443.5,3.45402]
[1718703453926,2.11012193,3443.6,3443.5,3.45402]
[1718703454167,0.91098442,3443.6,3443.5,3.45402]
[1718703454471,0.91098442,3443.6,3443.5,0.55]
[1718703454628,0.91098442,3443.6,3443.5,7.237227]
[1718703454832,0.65208163,3444.0,3443.9,2.90368]
[1718703455130,0.60737902,3444.8,3444.5,2.90317]
[1718703455365,1.21471366,3445.0,3444.9,2.90284]
[1718703455366,0.60737902,3445.0,3444.9,2.90284]
[1718703455575,0.60749948,3445.2,3445.1,5.8053]
[1718703455935,0.60749948,3445.3,3445.2,5.80516]
[1718703456130,0.60750891,3445.3,3445.2,7.28096]
[1718703456330,1.21471366,3445.7,3445.4,2.90236]
[1718703456546,2.10893577,3445.6,3445.5,0.55]
[1718703457165,4.25308267,3446.2,3445.5,0.55]
[1718703457166,1.21471366,3445.8,3445.5,0.55]
[1718703457482,2.10892145,3445.7,3445.5,0.55]
[1718703459256,1.21471366,3445.9,3445.5,0.55]
[1718703459462,2.10891729,3445.8,3445.5,0.55]
[1718703460075,3.32363095,3445.8,3445.5,0.55]
[1718703460275,0.6066885,3445.6,3445.5,0.55]
[1718703460483,0.60669297,3445.6,3445.3,3.45249]
[1718703462007,0.60669297,3445.6,3445.4,0.0580426]
[1718703462224,0.60669297,3445.7,3445.5,0.55]
[1718703463283,0.60669297,3445.7,3445.2,0.55]
[1718703463632,0.60669297,3445.7,3445.2,3.51061478]
[1718703465192,0.60669297,3445.7,3445.2,3.45257]
[1718703467243,0.60669297,3445.8,3445.2,3.45257]
[1718703467941,0.60669297,3445.8,3445.2,0.55]
[1718703467942,0.60669297,3445.6,3445.2,0.55]
[1718703468714,0.90942954,3445.8,3444.7,2.903]
[1718703468715,0.60669297,3445.5,3444.7,2.903]
[1718703469520,0.60669297,3445.5,3444.8,0.05805174]
[1718703470141,0.60669297,3445.5,3444.9,0.55]
[1718703473245,0.20669297,3445.5,3444.9,0.55]
[1718703474344,2.4456,3445.7,3444.9,3.45283]
[1718703476680,3.35502954,3445.7,3444.9,3.45283]
[1718703479583,2.4456,3445.7,3444.9,3.45283]
[1718703480082,3.35502954,3445.7,3444.9,3.45283]
[1718703480374,0.90942954,3445.8,3445.1,2.90259]
[1718703480575,0.90942954,3445.9,3445.2,3.45258]
[1718703481464,0.90942954,3445.9,3445.6,0.86]
[1718703481672,2.30254235,3445.9,3445.6,0.86]
[1718703481976,0.90942954,3445.9,3445.6,0.86]
[1718703482186,2.30254235,3445.9,3445.6,0.86]
[1718703482363,1.39311281,3445.8,3445.6,0.86]
[1718703482561,2.30254235,3445.9,3445.6,0.86]
[1718703483082,1.39311281,3445.9,3445.8,0.86]
[1718703483243,1.99859011,3446.0,3445.8,0.86]
[1718703484242,0.6054773,3446.0,3445.8,0.86]
[1718703485479,1.1076548,3446.0,3445.8,0.86]
[1718703485681,1.21471366,3446.3,3445.8,0.86]
[1718703485682,1.1076548,3446.1,3445.8,0.86]
[1718703485982,0.6054773,3446.2,3446.0,0.86]
[1718703489754,0.6054773,3446.2,3445.9,0.55]
[1718703489977,0.6054773,3446.2,3446.1,0.86]
[1718703490479,0.6054773,3446.3,3446.1,0.86]
[1718703490868,0.6054773,3446.2,3446.1,0.86]
[1718703492180,1.21471366,3446.5,3446.1,0.86]
[1718703492181,0.90942954,3446.3,3446.1,0.86]
[1718703493321,0.90942954,3446.2,3446.1,0.86]
[1718703493503,0.90942954,3446.3,3446.1,0.86]
[1718703494291,1.71680558,3446.5,3446.1,0.86]
[1718703494292,0.90942954,3446.2,3446.1,0.86]
[1718703496173,2.10873148,3446.2,3446.1,0.86]
[1718703497281,3.32344514,3446.2,3446.1,0.86]
[1718703498301,2.10873148,3446.2,3446.1,0.86]
[1718703500612,3.93083985,3446.2,3445.9,0.86]
[1718703500789,1.39280832,3446.0,3445.9,0.86]
[1718703500975,3.5015398,3446.0,3445.9,0.86]
[1718703501181,2.10873148,3446.0,3445.9,0.86]
[1718703501408,3.62891117,3446.0,3445.9,0.86]
[1718703501712,3.62891117,3446.0,3445.9,1.41]
[1718703502611,2.10873148,3446.0,3445.9,1.41]
[1718703503195,3.62886757,3446.0,3445.9,1.41]
[1718703503390,2.91296359,3446.1,3446.0,2.90191]
[1718703503590,0.60817523,3446.3,3446.2,8.70522]
[1718703503911,0.60817523,3446.4,3446.3,8.70498]
[1718703504112,0.91226285,3446.9,3446.7,8.70396]
[1718703504318,1.21635047,3447.1,3446.9,2.90115]
[1718703504319,0.91226285,3447.1,3446.9,2.90115]
[1718703504479,0.91226285,3447.2,3447.0,4.31099]
[1718703504685,0.91226285,3447.4,3447.3,5.80164]
[1718703504931,1.21635047,3447.6,3447.3,5.80164]
[1718703504932,0.91226285,3447.6,3447.5,2.90065]
[1718703505129,1.21635047,3447.7,3447.5,2.90065]
[1718703505130,0.91226285,3447.7,3447.5,0.55]
[1718703505344,0.91226285,3447.8,3447.5,0.86]
[1718703505613,0.91226285,3447.8,3447.4,0.55]
[1718703505786,1.21635047,3447.9,3447.4,0.55]
[1718703505787,0.91226285,3447.7,3447.4,0.55]
[1718703506619,0.91226285,3447.8,3447.4,0.55]
[1718703507200,0.91226285,3447.7,3447.4,0.55]
[1718703507524,0.91226285,3447.8,3447.3,2.062]
[1718703509496,0.91226285,3447.9,3447.3,2.062]
[1718703511009,0.91226285,3448.0,3447.3,2.062]
[1718703512521,0.91226285,3448.1,3447.3,2.062]
[1718703514134,0.91226285,3448.1,3447.3,4.96281]
[1718703514737,0.91226285,3448.4,3447.5,2.5987]
[1718703514913,0.91226285,3448.4,3447.6,0.55]
[1718703515108,0.91226285,3448.4,3447.6,3.45056]
[1718703516406,3.91226285,3448.5,3447.6,3.45056]
[1718703516606,3.91226285,3448.5,3447.7,2.90048]
[1718703517423,3.0,3448.5,3447.7,2.90048]
[1718703517632,3.91226285,3448.5,3447.7,2.90048]
[1718703517936,3.91226285,3448.5,3447.6,3.45056]
[1718703518235,3.91226285,3448.5,3447.6,6.23346]
[1718703518537,0.91226285,3448.5,3447.6,3.3329]
[1718703519941,2.6387,3448.4,3447.6,3.3329]
[1718703520504,2.6387,3448.4,3447.1,5.43087]
[1718703520709,2.6387,3448.4,3447.2,4.96289]
[1718703520909,3.55096285,3448.4,3447.2,4.96289]
[1718703521539,2.6387,3448.4,3447.2,4.96289]
[1718703521745,3.55096285,3448.4,3447.2,4.96289]
[1718703522036,3.55096285,3448.4,3447.3,0.55]
[1718703522246,2.6387,3448.4,3447.3,0.55]
[1718703522643,3.55096285,3448.4,3447.3,0.55]
[1718703523444,4.94428113,3448.4,3447.3,0.55]
[1718703523948,4.94419972,3448.4,3447.3,0.55]
[1718703525520,4.94416119,3448.4,3447.3,0.55]
[1718703526458,1.39319834,3448.3,3447.3,0.55]
[1718703527552,1.39319834,3448.3,3447.9,0.859]
[1718703528238,1.39319834,3448.2,3447.9,0.859]
[1718703530366,1.39309662,3448.1,3447.9,0.859]
[1718703530568,0.99309662,3448.1,3447.9,0.859]
[1718703531124,3.55096285,3448.4,3447.9,0.859]
[1718703531454,2.6387,3448.4,3447.9,0.859]
[1718703531962,2.6387,3448.4,3448.1,0.859]
[1718703532548,3.55096285,3448.4,3448.1,0.859]
[1718703533464,0.50183445,3448.3,3448.1,0.859]
[1718703533627,3.55096285,3448.4,3448.1,0.859]
[1718703533628,0.50183445,3448.2,3448.1,0.859]
[1718703534461,3.55096285,3448.4,3448.1,0.859]
[1718703535640,0.91226285,3448.3,3448.1,0.859]
[1718703538282,3.85505047,3448.4,3448.1,0.859]
[1718703538283,0.91226285,3448.2,3448.1,0.859]
[1718703539348,0.91226285,3448.2,3447.9,0.859]
[1718703539666,0.91226285,3448.0,3447.3,3.2474]
[1718703539860,0.91226285,3447.9,3447.7,0.859]
[1718703540467,1.21635047,3448.0,3447.7,0.859]
[1718703540468,0.91226285,3447.8,3447.7,0.859]
[1718703540870,0.91226285,3447.9,3447.7,0.859]
[1718703541882,0.91226285,3447.8,3447.7,0.859]
[1718703542085,3.77775047,3447.9,3447.0,2.7516]
[1718703542291,3.77775047,3447.9,3447.3,0.859]
[1718703542292,0.90888434,3447.5,3447.3,0.859]
[1718703543372,0.90888434,3447.4,3447.3,0.859]
[1718703544275,0.90888434,3447.4,3446.9,7.43]
[1718703544477,0.90888434,3447.2,3446.6,2.6001]
[1718703544790,0.90888434,3446.9,3446.8,0.859]
[1718703544949,1.21184579,3447.0,3446.8,0.859]
[1718703545155,3.3202541,3446.9,3446.3,2.6001]
[1718703545473,1.21184579,3446.9,3446.7,0.859]
[1718703545660,1.21184579,3446.8,3446.3,2.6001]
[1718703545861,1.21184579,3446.9,3446.7,0.859]
[1718703546065,1.21184579,3446.8,3446.7,0.859]
[1718703546265,1.2130315,3446.8,3445.9,10.33199]
[1718703546479,3.32147967,3446.8,3446.6,0.859]
[1718703546668,1.2130315,3446.8,3446.6,0.859]
[1718703546862,1.2130315,3446.8,3445.7,2.90214]
[1718703546863,3.32156005,3446.7,3445.7,2.7604]
[1718703547190,0.91001696,3446.3,3446.1,0.859]
[1718703547567,1.21335595,3446.3,3446.1,0.859]
[1718703548526,0.91017003,3446.2,3446.1,0.859]
[1718703549206,0.91017003,3446.2,3445.7,2.7604]
[1718703549370,0.91017003,3446.2,3446.1,0.859]
[1718703551375,0.91017003,3446.3,3446.1,0.859]
[1718703553073,0.91017003,3446.4,3446.1,0.859]
[1718703554623,0.91017003,3446.4,3446.2,0.859]
[1718703555282,0.91017003,3446.5,3446.2,0.859]
[1718703557290,0.91017003,3446.6,3446.2,0.859]
[1718703558982,1.21335595,3446.7,3446.2,0.859]
[1718703558983,0.91017003,3446.5,3446.2,0.859]
[1718703560340,0.91017003,3446.3,3445.3,13.094]
[1718703560487,0.91017003,3446.3,3445.7,0.859]
[1718703560685,0.91017003,3446.2,3445.7,0.859]
[1718703561108,0.91017003,3446.3,3445.7,0.859]
[1718703561813,0.91017003,3446.3,3445.9,0.859]
[1718703561989,0.91017003,3446.3,3445.4,0.55]
[1718703562192,0.91017003,3446.3,3445.8,0.859]
[1718703563289,3.65177003,3446.4,3445.4,0.55]
[1718703563493,3.65177003,3446.4,3445.8,0.859]
[1718703563713,3.65177003,3446.4,3445.8,0.6191]
[1718703567239,3.65177003,3446.4,3445.2,2.6509]
[1718703567421,3.65177003,3446.4,3445.4,0.859]
[1718703567422,0.91017003,3446.1,3445.4,0.859]
[1718703567618,0.91017003,3446.0,3445.4,0.859]
[1718703569137,0.91017003,3446.0,3445.6,0.859]
[1718703569438,0.91017003,3446.0,3445.5,0.859]
[1718703569643,0.91017003,3446.1,3445.5,0.859]
[1718703570341,5.61591652,3446.4,3445.9,0.859]
[1718703570342,3.65177003,3446.4,3445.9,0.859]
[1718703571209,0.91017003,3446.4,3445.9,0.859]
[1718703571441,0.91017003,3446.5,3445.9,0.859]
[1718703571765,0.91017003,3446.4,3445.9,0.859]
[1718703573658,0.91017003,3446.3,3445.9,0.859]
[1718703578147,0.91017003,3446.2,3445.9,0.859]
[1718703578345,0.91017003,3446.3,3445.9,0.859]
[1718703578546,0.91017003,3446.2,3445.5,2.6562]
[1718703578772,0.91017003,3446.2,3445.7,0.859]
[1718703578946,2.662,3446.1,3445.7,0.859]
[1718703579153,2.662,3446.1,3445.1,2.5457]
[1718703579478,2.662,3446.1,3445.5,0.859]
[1718703580276,3.57217003,3446.1,3445.5,0.859]
[1718703581390,3.57217003,3446.1,3445.7,0.859]
[1718703581577,0.91017003,3446.0,3445.7,0.859]
[1718703583397,1.21335595,3446.1,3445.7,0.859]
[1718703583398,0.91017003,3445.9,3445.7,0.859]
[1718703584293,0.91017003,3445.8,3445.7,0.859]
[1718703585368,1.21335595,3445.9,3445.7,0.859]
[1718703585807,1.21335595,3446.0,3445.8,2.7583]
[1718703586118,0.90966883,3445.9,3445.8,2.7583]
[1718703586333,0.90966883,3445.9,3445.8,3.6173]
[1718703587195,2.1088837,3445.9,3445.8,3.6173]
[1718703587402,3.32223965,3445.9,3445.8,3.6173]
[1718703588195,2.1088837,3445.9,3445.8,3.6173]
[1718703589214,3.62505251,3445.9,3445.8,3.6173]
[1718703589392,2.1088837,3445.9,3445.8,3.6173]
[1718703589582,3.62505251,3445.9,3445.8,3.6173]
[1718703590886,2.1088837,3445.9,3445.8,3.6173]
[1718703591319,2.1088837,3446.0,3445.8,3.6173]
[1718703591486,2.1088837,3445.9,3445.8,3.6173]
[1718703591687,2.1088837,3446.0,3445.8,0.859]
[1718703591985,2.1088837,3445.9,3445.8,0.859]
[1718703594514,1.82360925,3446.1,3445.8,0.859]
[1718703594712,2.10888436,3446.0,3445.8,0.859]
[1718703594910,2.10888436,3445.9,3445.8,0.859]
[1718703595839,2.10888436,3445.9,3445.5,2.6118]
[1718703596017,1.51973315,3445.6,3445.5,2.6118]
[1718703596219,1.51973315,3445.6,3445.5,3.4708]
[1718703596536,3.62861751,3445.6,3445.5,3.4708]
[1718703596933,2.10888436,3445.6,3445.5,3.4708]
[1718703597136,3.62861751,3445.6,3445.5,3.4708]
[1718703598734,3.62876741,3445.6,3445.5,3.4708]
[1718703600846,3.22876741,3445.6,3445.5,3.4708]
[1718703601040,3.228961,3445.6,3445.5,3.4708]
[1718703601227,1.70888436,3445.6,3445.0,2.6226]
[1718703601406,0.91208776,3445.1,3445.0,2.6226]
[1718703601739,2.1281073,3446.1,3445.0,2.6226]
[1718703601740,1.21611702,3445.2,3445.0,3.4816]
[1718703601939,1.52014627,3445.3,3445.1,0.859]
[1718703602254,1.21606631,3445.2,3445.1,0.859]
[1718703603048,1.52014627,3445.3,3445.1,0.859]
[1718703603352,1.21607931,3445.2,3445.1,0.859]
[1718703609565,1.21607931,3445.2,3445.1,12.15216225]
[1718703609867,0.9122309,3445.8,3445.3,2.5271]
[1718703610165,3.16332655,3446.5,3445.2,4.64758]
[1718703610166,0.9122309,3446.0,3445.8,5.49038]
[1718703610333,0.9122309,3446.2,3446.1,2.90183]
[1718703610532,0.9122309,3446.3,3446.2,2.90174]
[1718703610766,0.9122309,3446.3,3446.2,3.76074]
[1718703611231,0.9122309,3446.4,3446.2,3.76074]
[1718703611565,0.9122309,3446.4,3446.3,0.859]
[1718703611951,0.9122309,3446.4,3446.3,4.31066]
[1718703612152,0.9122309,3446.5,3446.4,2.90157]
[1718703612371,0.9122309,3446.5,3446.4,3.76057]
[1718703612778,0.9122309,3446.5,3446.4,4.31057]
[1718703613169,0.9122309,3446.6,3446.4,4.31057]
[1718703613369,0.9122309,3446.6,3446.5,0.859]
[1718703615155,0.9122309,3446.7,3446.5,0.859]
[1718703615361,0.9122309,3446.7,3446.6,0.859]
[1718703618178,0.9122309,3446.8,3446.6,0.859]
[1718703618382,0.9122309,3446.8,3446.7,0.859]
[1718703621135,0.9122309,3446.9,3446.7,0.859]
[1718703626606,0.9122309,3446.8,3446.7,0.859]
[1718703628840,0.9122309,3446.8,3446.1,2.5883]
[1718703629032,3.4962309,3446.8,3446.5,0.859]
[1718703629343,0.9122309,3446.7,3446.5,0.859]
[1718703633111,1.21646894,3446.7,3445.9,7.43]
[1718703633312,0.90891091,3446.5,3446.2,0.859]
[1718703633713,0.90891091,3446.4,3446.2,0.859]
[1718703636053,3.86116894,3446.3,3445.8,0.859]
[1718703636351,3.86116894,3446.3,3445.4,2.7303]
[1718703636352,0.90846758,3445.9,3445.7,0.859]
[1718703636512,0.90846758,3445.9,3445.4,2.7303]
[1718703636849,0.90846758,3445.9,3445.2,7.43]
[1718703636850,0.90846758,3445.7,3445.6,0.859]
[1718703640529,0.90846758,3445.9,3445.7,2.90216]
[1718703640727,1.21646894,3446.0,3445.8,0.859]
[1718703640728,0.90846758,3446.0,3445.8,0.859]
[1718703640942,0.90846758,3446.1,3445.8,0.859]
[1718703641138,0.90846758,3446.1,3446.0,0.859]
[1718703646327,0.90846758,3446.1,3445.6,2.784]
[1718703646530,0.90846758,3446.1,3446.0,0.859]
[1718703646736,0.50846758,3446.1,3446.0,0.859]
[1718703649891,1.21646894,3446.2,3446.0,0.859]
[1718703652500,1.21646894,3446.3,3446.0,0.859]
[1718703652674,1.21646894,3446.2,3446.0,0.859]
[1718703656104,0.9089832,3446.1,3446.0,0.859]
[1718703656978,1.21646894,3446.2,3446.0,0.859]
[1718703657285,0.90897143,3446.1,3446.0,0.859]
[1718703657703,1.21646894,3446.2,3446.0,0.859]
[1718703664344,0.90933337,3446.1,3446.0,0.859]
[1718703664648,0.90933337,3446.2,3446.0,0.859]
[1718703664854,0.90933337,3446.2,3446.1,3.62]
[1718703665342,0.90933337,3446.3,3446.1,3.62]
[1718703665554,1.21646894,3446.4,3446.1,3.62]
[1718703665555,0.90933337,3446.2,3446.1,2.761]
[1718703665700,0.90933337,3446.3,3446.2,0.859]
[1718703666248,1.21646894,3446.4,3446.2,0.859]
[1718703666555,1.21646894,3446.4,3446.1,2.761]
[1718703666699,1.21646894,3446.4,3446.3,0.859]
[1718703667126,1.51504559,3446.5,3446.3,0.859]
[1718703669252,1.51504559,3446.4,3446.3,0.859]
[1718703669663,1.51504559,3446.4,3445.8,2.7726]
[1718703669943,1.51504559,3446.4,3445.6,2.90224]
[1718703669944,0.90986735,3445.9,3445.6,5.62754]
[1718703670144,0.90986735,3445.9,3445.8,0.859]
[1718703671200,0.90986735,3446.0,3445.8,0.859]
[1718703671400,0.90986735,3446.0,3445.9,0.859]
[1718703672160,1.21315647,3446.1,3445.9,0.859]
[1718703677577,1.21315647,3446.0,3445.9,0.859]
[1718703678689,1.21315647,3446.1,3445.9,0.859]
[1718703678993,1.51828856,3446.2,3446.0,0.859]
[1718703679303,1.21473604,3446.1,3446.0,0.859]
[1718703679671,1.51828856,3446.2,3446.0,0.859]
[1718703679979,1.51843128,3446.2,3446.0,0.859]
[1718703680505,1.51843128,3446.3,3446.1,2.7663]
[1718703680650,1.51843128,3446.3,3446.2,0.859]
[1718703680993,3.62703461,3446.3,3446.2,0.859]
[1718703684268,2.10860333,3446.3,3446.2,0.859]
[1718703684865,2.10860333,3446.5,3446.2,0.859]
[1718703685152,4.21725259,3446.4,3446.2,0.859]
[1718703685387,2.10860333,3446.3,3446.2,0.859]
[1718703685599,2.10860333,3446.5,3446.2,0.859]
[1718703685760,4.2172493,3446.4,3446.2,0.859]
[1718703685966,2.10860333,3446.3,3446.2,0.859]
[1718703686253,2.10860333,3446.5,3446.2,0.859]
[1718703686456,4.21725176,3446.4,3446.2,0.859]
[1718703686775,2.10860333,3446.3,3446.2,0.859]
[1718703686980,2.10860333,3446.5,3446.2,0.859]
[1718703687177,2.10862587,3446.4,3446.0,2.90191]